Cogmind - Beta 13 @@@ ROGUE MODE // 2024.05.07 @ 17:38:51 Player: trisiak Result: Destroyed by Y-45 Defender with Beam Rifle Performance ------------- Evolutions (2) 1000 Regions Visited (4) 800 Robots Destroyed (81) 405 Value Destroyed (2322) 2322 Prototype IDs (11) 220 Alien Tech Used (0) 0 Bonus (11) 11 TOTAL SCORE: 4758 Bonus ------- High Alert Combat Kills 11 Cogmind --------- Core Integrity 0/550 Matter 3/300 Energy 180/180 System Corruption 2% Temperature Cool (9) Movement Rolling (155) Ox5 Location -8/Materials Parts ------- > --- POWER (1) -------- Meta Core > --- PROPULSION (3) --- Wheel > --- UTILITY (5) ------ High-capacity Storage Unit Structural Scanner Trap Scanner Sensor Array Improved Terrain Scanner > --- WEAPON (2) ------- Mini Grenade Launcher Makeshift Spear > --- INVENTORY (20) --- Light Nuclear Core Light Nuclear Core Makeshift Power Source High-capacity Storage Unit Large Matter Pod (90) Great Maul Katana Peak State ------------ > --- POWER ------------ Meta Core > --- PROPULSION ------- Wheel Compact Wheel Compact Wheel Subdweller Monowheel > --- UTILITY ---------- High-capacity Storage Unit Seismic Detector Recoil Stabilizer Improved Light Armor Plating Improved Light Armor Plating Reactive Plating > --- WEAPON ----------- Autogun Assault Cannon > --- INVENTORY -------- Light Nuclear Core Light Nuclear Core Makeshift Power Source Improved Heat Sink High-capacity Storage Unit Large Matter Pod Large Matter Pod Structural Scanner Trap Scanner Sensor Array Improved Terrain Scanner Improved Utility Shielding Improved Light Armor Plating Insulated Plating Assault Rifle Assault Rifle Grenade Launcher Grenade Launcher Mini Grenade Launcher Makeshift Spear [Rating: 41] Favorites ----------- Power Meta Core Engine Ion Engine Power Core Meta Core Propulsion Compact Wheel Treads Light Treads Leg Aluminum Leg Wheel Compact Wheel Utility High-capacity Storage Unit Device Seismic Detector Storage High-capacity Storage Unit Processor Targeting Computer Protection Improved Light Armor Plating Weapon Assault Rifle Energy Gun Medium Laser Energy Cannon Beam Cannon Ballistic Gun Assault Rifle Ballistic Cannon Assault Cannon Launcher Grenade Launcher Special Weapon Mining Laser Piercing Weapon Makeshift Spear Build | -11 -10 -10 -10 -8 ------- Run | Yrd Mat Min Sub Mat Slots Evolved 4 | . . . . 4 Power . | . . . . . Propulsion 1 | . . . . 1 Utility 3 | . . . . 3 Weapon . | . . . . . Parts Attached 137 | 2 36 11 32 56 Power 3 | . 1 . 2 . Engine 1 | . . . 1 . Core 2 | . 1 . 1 . Reactor . | . . . . . Propulsion 20 | . 6 1 4 9 Treads 5 | . 2 . . 3 Leg 1 | . . . . 1 Wheel 14 | . 4 1 4 5 Hover . | . . . . . Flight . | . . . . . Utility 59 | 1 7 9 18 24 Device 40 | 1 6 7 14 12 Storage 1 | . 1 . . . Processor 1 | . . . . 1 Hackware . | . . . . . Protection 17 | . . 2 4 11 Artifact . | . . . . . Weapon 55 | 1 22 1 8 23 Energy Gun 1 | . . . . 1 Energy Cannon 6 | . 6 . . . Ballistic Gun 25 | 1 8 . 6 10 Ballistic Cannon 3 | . . . . 3 Launcher 13 | . 4 1 2 6 Special Weapon 4 | . 4 . . . Impact Weapon . | . . . . . Slashing Weapon . | . . . . . Piercing Weapon 3 | . . . . 3 Special Melee Weapon . | . . . . . Unidentified Prototypes 1 | . . . . 1 Corrupted Parts 1 | . . 1 . . System Corruption 2 | . . 2 . . Parts Lost 32 | . . . 2 30 Power 1 | . . . 1 . Propulsion 8 | . . . . 8 Utility 13 | . . . . 13 Weapon 10 | . . . 1 9 Highest Loss Streak 14 | . . . 1 14 To Critical Strikes . | . . . . . Average Slot Usage (%) 94 | . 100 100 90 88 Engine 3 | . 8 . 1 . Core 7 | . 5 14 9 7 Treads 1 | . 1 . . 3 Wheel 23 | . 25 28 24 15 Device 14 | . 14 13 11 17 Storage 11 | . 14 14 10 7 Protection 4 | . . . 2 15 Energy Cannon 4 | . 11 . . . Ballistic Gun 18 | . 15 26 25 10 Launcher 2 | . . 1 4 2 Naked Turns . | . . . . . Heaviest Build 72 | 14 52 52 58 72 Greatest Support 56 | 20 40 32 56 42 Greatest Overweight (x) 19 | . 1 1 5 19 Average Overweight (x) 1 | . . 1 1 2 Largest Inventory Capacity 20 | 8 20 20 20 20 Average Capacity 19 | 8 19 20 20 20 Most Carried 20 | 8 20 20 20 20 Average Carried 18 | 7 18 19 19 16 Final Capacity 20 | 8 20 20 20 20 Final Carried 20 | 8 20 20 20 7 Class Distribution -------------------- 63% | Mutant 14% | Gunner 8% | Scavenger-Mutant 4% | Tank 3% | Scavenger-Tank Dominant Class ---------------- Mutant | -10/Materials Mutant | -10/Mines Gunner | -10/Subcaves Mutant | -8/Materials Resources | -11 -10 -10 -10 -8 ----------- Run | Yrd Mat Min Sub Mat Matter Collected 2972 | 287 788 44 646 1207 Remotely . | . . . . . Salvage Created 2509 | 196 753 18 251 1291 Parts 166 | 18 55 1 21 71 Haulers Intercepted 5 | . 2 . . 3 Recyclers Shooed 2 | . . . . 2 Parts Field Recycled . | . . . . . Retrieved Matter . | . . . . . Parts Self-Destructed 13 | . . . 13 . Prevented . | . . . . . Kills | -11 -10 -10 -10 -8 ------- Run | Yrd Mat Min Sub Mat Combat Hostiles Destroyed 52 | . 16 1 8 27 Melee 3 | . . . . 3 Guns 20 | . 3 1 7 9 Cannons 13 | . 8 . . 5 AOE 16 | . 5 . 1 10 Classes Destroyed 16 | 3 5 . 1 7 Worker 7 | 2 2 . . 3 Builder 4 | . . . . 4 Tunneler 3 | 3 . . . . Hauler 5 | . 2 . . 3 Recycler 3 | 1 . . . 2 Operator 3 | . 2 . . 1 Watcher 4 | . 2 . . 2 Swarmer 6 | . 2 1 3 . Grunt 29 | . 14 . . 15 Brawler 1 | . . . . 1 Duelist 2 | . . . . 2 Sentry 3 | . . . . 3 Specialist 4 | . . . . 4 Hunter 1 | . . . . 1 Heavy 1 | . . . . 1 Subdweller 5 | . . . 5 . Best Kill Streak 9 | 4 9 1 3 7 Combat Bots Only 5 | . 5 1 3 4 Max Kills in Single Turn 7 | 1 7 1 2 2 Gunslinging . | . . . . . Exploded 3 | . 3 . 1 1 Melee 1 | . . . . 1 Uniques/NPCs Destroyed . | . . . . . Combat | -11 -10 -10 -10 -8 -------- Run | Yrd Mat Min Sub Mat Hostile Shots Fired 332 | . 42 4 45 241 Missed 96 | . 14 2 10 70 Damage Taken 4263 | . 313 72 616 3262 Core 801 | . 136 22 91 552 Absorbed by Shields . | . . . . . Redirected to Shielding 79 | . . . . 79 Ignored by Resistances 51 | . . . . 51 Regen/Repaired (Parts) 15 | . 15 . . . Core Remaining (%) 50 | 100 . . . . Volleys Fired 211 | 17 55 6 34 99 Largest 3 | 2 2 2 3 3 Hottest 120 | 70 120 40 78 78 Shots Fired 386 | 34 102 10 56 184 Gun 260 | 34 49 6 51 120 Cannon 76 | . 39 . . 37 Launcher 42 | . 6 4 5 27 Special 8 | . 8 . . . Kinetic 280 | 17 49 6 51 157 Thermal 64 | 17 47 . . . Explosive 42 | . 6 4 5 27 Electromagnetic . | . . . . . Robot Hit Streak 16 | 2 12 2 13 16 Robot Miss Streak 5 | 5 3 3 3 5 Penetration Max . | . . . . . Secondary Targets 1 | . . . . 1 Max Gunslinging Chain 1 | . . . . 1 Shots Hit Robots 221 | 13 59 2 27 120 Core Hits 157 | 9 38 1 12 97 Critical Kills 1 | . . . . 1 Critical Parts Destroyed 1 | . . 1 . . Critical Strikes 4 | 1 . 1 . 2 Burn 1 | 1 . . . . Destroy 2 | . . 1 . 1 Impale 1 | . . . . 1 Melee Attacks 16 | . . . . 16 Impact . | . . . . . Slashing . | . . . . . Piercing 16 | . . . . 16 Sneak Attacks . | . . . . . Combat Hostiles . | . . . . . Follow-up Attacks . | . . . . . Damage Inflicted 5467 | 133 1032 27 540 3735 Guns 1886 | 133 292 27 362 1072 Cannons 875 | . 385 . . 490 Explosions 2605 | . 355 . 178 2072 Melee 101 | . . . . 101 Ramming . | . . . . . Kinetic 2290 | 47 292 27 362 1562 Thermal 840 | 86 385 . . 369 Explosive 2236 | . 355 . 178 1703 Electromagnetic . | . . . . . Impact . | . . . . . Slashing . | . . . . . Piercing 101 | . . . . 101 Highest Corruption 2 | . . 2 2 2 Average Corruption 2 | . . 2 2 2 Corruption Purged . | . . . . . Corruption Blocked . | . . . . . Effects 16 | . . 6 10 . Message Errors 3 | . . 1 2 . Matter Fused 4 | . . 2 2 . Heat Flow Errors 1 | . . 1 . . Energy Discharges 2 | . . . 2 . Parts Rejected 1 | . . . 1 . Data Loss (minor) 1 | . . . 1 . Data Loss (major) 2 | . . . 2 . Misfires 2 | . . 2 . . Overload Shots . | . . . . . Overflow Damage 117 | . 2 . . 115 Projectiles . | . . . . . Explosions 117 | . 2 . . 115 Melee . | . . . . . Knockbacks 6 | . . . . 6 Impact . | . . . . . Kinetic 6 | . . . . 6 Secondary . | . . . . . Self-Inflicted Damage 114 | . . . 48 66 Shots 6 | . . . 3 3 Rammed . | . . . . . Targets Rammed . | . . . . . Kicked . | . . . . . Crushed . | . . . . . Highest Temperature 288 | 60 288 189 . 259 Average Temperature 63 | 23 61 62 . 78 Received Heat Transfer 1527 | . 156 . 84 1287 Effects 1 | . 1 . . . Energy Bleed 1 | . 1 . . . Siege Activations . | . . . . . Robots Corrupted . | . . . . . Combat Hostiles . | . . . . . Parts Fried . | . . . . . Impact Corruptions . | . . . . . Robots Melted . | . . . . . Combat Hostiles . | . . . . . Parts Melted . | . . . . . Heat Transferred 1347 | 333 814 . . 200 Parts Sabotaged . | . . . . . Parts Stolen . | . . . . . Parts Stripped . | . . . . . Power Chain Reactions . | . . . . . Alert | -11 -10 -10 -10 -8 ------- Run | Yrd Mat Min Sub Mat Peak Influence 451 | 30 185 112 . 451 Initial 43 | . 19 43 . . Average 105 | 14 76 80 . 166 Maximum Alert Level 2 | . . . . 2 Low Security (%) 86 | 100 100 100 . 60 Level 1 11 | . . . . 34 Level 2 1 | . . . . 4 Level 3 . | . . . . . Level 4 . | . . . . . Level 5 . | . . . . . High Security . | . . . . . Max Security . | . . . . . Squads Dispatched 14 | . 8 . . 6 Investigation 8 | . 7 . . 1 Extermination . | . . . . . Reinforcement 6 | . 1 . . 5 Assault . | . . . . . Garrison . | . . . . . Intercept . | . . . . . Searches Triggered . | . . . . . Construction Impeded 1 | . . . . 1 Haulers Reinforced . | . . . . . Active Scanning Responses . | . . . . . Cargo Convoy Interrupts . | . . . . . Stealth | -11 -10 -10 -10 -8 --------- Run | Yrd Mat Min Sub Mat Distress Signals 4 | . 1 . . 3 Communications Jammed . | . . . . . Distress Signals . | . . . . . Times Spotted 80 | . 27 3 11 39 Peak Tracking Total 8 | . 7 3 4 8 Tactical Retreats 6 | . 1 1 1 3 Traps | -11 -10 -10 -10 -8 ------- Run | Yrd Mat Min Sub Mat Traps Triggered 9 | . 3 2 2 2 Indirectly . | . . . . . Trap Hack Attempts . | . . . . . Triggered . | . . . . . Disarmed . | . . . . . Reprogrammed 1 | . 1 . . . Reused 2 | . 1 . 1 . Traps Extracted . | . . . . . Installed 2 | . . . 2 . Triggered 1 | . 1 . . . Most Traps Carried 3 | . . . 3 . Machines | -11 -10 -10 -10 -8 ---------- Run | Yrd Mat Min Sub Mat Machines Disabled 3 | . . . 1 2 Max in Single Turn 1 | . . . 1 1 Machines Repaired . | . . . . . Machines Dismantled . | . . . . . Machines Sabotaged . | . . . . . Overloaded Fab Kills . | . . . . . Hacking | -11 -10 -10 -10 -8 --------- Run | Yrd Mat Min Sub Mat Machines Accessed 15 | . 9 1 1 4 Terminals 10 | . 7 . . 3 Fabricators . | . . . . . Repair Stations 1 | . 1 . . . Recycling Units 1 | . 1 . . . Scanalyzers 1 | . . . . 1 Garrison Access . | . . . . . Total Hacks 63 | . 39 1 9 14 Successful 40 | . 22 1 9 8 Failed 23 | . 17 . . 6 Catastrophic 2 | . 2 . . . Database Lockouts . | . . . . . Manual 31 | . 22 . . 9 Terminals 43 | . 31 . . 12 Fabricators . | . . . . . Repair Stations 3 | . 3 . . . Recycling Units 5 | . 5 . . . Scanalyzers 2 | . . . . 2 Garrison Access . | . . . . . Terminal Hacks 24 | . 11 1 9 3 Record 8 | . . . 8 . Part Schematic 1 | . 1 . . . Open Door 1 | . . 1 . . Branch Access Points 2 | . 1 . . 1 Emergency Access Points 1 | . 1 . . . Alert Level 1 | . 1 . . . Unreport Threat 1 | . 1 . . . Locate Traps 1 | . 1 . . . Reprogram Traps 1 | . 1 . . . Dispatch Records 1 | . 1 . . . Hauler Manifests 2 | . 1 . . 1 Zone Layout 3 | . 2 . . 1 Derelict Proto ID Bank 1 | . . . 1 . Fabricator Hacks . | . . . . . Repair Station Hacks 2 | . 2 . . . Scan Component 1 | . 1 . . . Repair 1 | . 1 . . . Recycling Unit Hacks 1 | . 1 . . . Report Inventory 1 | . 1 . . . Scanalyzer 2 | . . . . 2 Insert Component 1 | . . . . 1 Analyze 1 | . . . . 1 Garrison Access Hacks . | . . . . . Unauthorized Hacks 10 | . 7 . . 3 Terminals 8 | . 5 . . 3 Botnet 8 | . 5 . . 3 Fabricators . | . . . . . Repair Stations . | . . . . . Recycling Units 2 | . 2 . . . Reject 1 | . 1 . . . Mask 1 | . 1 . . . Scanalyzers . | . . . . . Garrison Access . | . . . . . Data Cores Recovered 1 | . 1 . . . Used 1 | . 1 . . . Hacking Detections 11 | . 7 . . 4 Full Trace Events 9 | . 6 . . 3 Feedback Events . | . . . . . Feedback Blocked . | . . . . . Robot Schematics Acquired . | . . . . . Robots Built . | . . . . . Authchips . | . . . . . Time . | . . . . . Total Robot Build Rating . | . . . . . Part Schematics Acquired 2 | . 1 . . 1 Parts Built . | . . . . . Authchips . | . . . . . Time . | . . . . . Total Part Build Rating . | . . . . . Parts Repaired 1 | . 1 . . . Time 26 | . 26 . . . Parts Recycled . | . . . . . Recycled Matter . | . . . . . Retrieved Matter . | . . . . . Retrieved Components . | . . . . . Parts Scanalyzed 1 | . . . . 1 Part Schematics Acquired 1 | . . . . 1 Parts Damaged . | . . . . . Bothacking | -11 -10 -10 -10 -8 ------------ Run | Yrd Mat Min Sub Mat Used RIF Installer . | . . . . . Robots Hacked . | . . . . . Non-combat . | . . . . . Combat . | . . . . . Robot Hacks Applied . | . . . . . Relay Couplers Released . | . . . . . Fabnet Peak Effective % . | . . . . . Robots Rewired . | . . . . . Allies Hacked . | . . . . . Hacks Repelled . | . . . . . Allies | -11 -10 -10 -10 -8 -------- Run | Yrd Mat Min Sub Mat Total Allies . | . . . . . Largest Group . | . . . . . Highest-Rated Group . | . . . . . Highest-Rated Ally . | . . . . . Total Orders . | . . . . . Ally Attacks . | . . . . . Total Damage . | . . . . . Kills . | . . . . . Allies Corrupted . | . . . . . Allies Melted . | . . . . . Intel | -11 -10 -10 -10 -8 ------- Run | Yrd Mat Min Sub Mat Robot Analysis Total . | . . . . . Derelict Logs Recovered 2 | . . 1 1 . Drone Launches . | . . . . . Drone Recoveries . | . . . . . Exploration | -11 -10 -10 -10 -8 ------------- Run | Yrd Mat Min Sub Mat Turns Passed 4233 | 146 1512 321 1205 1049 Spaces Moved 2333 | 78 919 155 807 374 Core 2 | . . . . 2 Treads 61 | . 28 . . 33 Legs 119 | 78 22 . . 19 Wheels 2151 | . 869 155 807 320 Hover . | . . . . . Flight . | . . . . . Fastest Speed 101 | 120 115 115 107 101 Average Speed 124 | 120 118 115 118 157 Slowest Speed 1000 | 120 240 115 155 1000 Overloaded Moves . | . . . . . Propulsion Burnouts . | . . . . . Robots Hopped . | . . . . . Cave-ins Triggered . | . . . . . Exploration Rate (%) 41 | 4 98 33 37 37 Regions Visited 4 Branch Regions 2 Pre-discovered Areas 1 | . . 1 . . Known Exits Taken 1 | . 1 . . . Unknown Exits Taken 3 | 1 . 1 1 . Scrap Searched 6 | . . . 6 . Spaces Dug 15 | . 8 . . 7 Terrain Destroyed 287 | . 44 21 27 195 Melee 7 | . . . . 7 Projectile 20 | . 8 . . 12 AOE 260 | . 36 21 27 176 Terrain Rammed . | . . . . . Walls Destroyed . | . . . . . Machines Disabled . | . . . . . Actions | -11 -10 -10 -10 -8 --------- Run | Yrd Mat Min Sub Mat Total 3249 | 100 1219 286 1006 638 Wait 447 | . 164 109 111 63 Move 2329 | 77 918 154 806 374 Hop . | . . . . . Pick Up 58 | 3 28 1 7 19 Fast Attach 16 | 1 1 2 6 6 Attach 33 | 1 . . 4 28 Detach 7 | . . 2 2 3 Swap 88 | . 35 9 22 22 Drop 42 | 1 18 3 12 8 Fire 211 | 17 55 6 34 99 Melee 16 | . . . . 16 Ram . | . . . . . Kick . | . . . . . Crush . | . . . . . Escape Stasis . | . . . . . Rewire . | . . . . . Trap 2 | . . . 2 . Miscellaneous . | . . . . . Route ------- -11/Scrapyard -10/Materials (discovered 5 exits: [*Mat x3] / *Min x2) -10/Mines -10/Subcaves -8/Materials (discovered 2 exits: *Sto x2) History --------- Turn | Location | Event 1 | -11/Scrapyard | Discovered new exit (range 3) 147 | -11/Scrapyard | Entered Materials 306 | -10/Materials | Build established: Mutant 354 | -10/Materials | Discovered new exit (range 8) 779 | -10/Materials | Discovered new exit (range 11) 1151 | -10/Materials | Repaired Mining Laser 1161 | -10/Materials | Discovered new exit (range 14) 1347 | -10/Materials | Discovered new exit (range 6) 1558 | -10/Materials | Identified exit to Mines 1569 | -10/Materials | Core integrity fell below 50% 1629 | -10/Materials | Discovered new exit (range 16) 1659 | -10/Materials | Entered Mines 1667 | -10/Mines | Met a Derelict who couldn't figure out how to use a Trap Extractor 1685 | -10/Mines | Met a Derelict bent on vengeance 1971 | -10/Mines | Discovered new exit (range 8) 1980 | -10/Mines | Entered Subcaves 2052 | -10/Subcaves | Shifting Twisted Machinery released Barrage Gun 2103 | -10/Subcaves | Visited 4L-MR0's lab 2126 | -10/Subcaves | Found Meta Core 2127 | -10/Subcaves | Attached Meta Core, gained temporary slots: Propulsion, Utility, Weapon 2302 | -10/Subcaves | A swath of the cavern ceiling suddenly collapsed 2397 | -10/Subcaves | Build established: Gunner 2729 | -10/Subcaves | Discovered new exit (range 10) 2821 | -10/Subcaves | Core integrity fell below 20% 2937 | -10/Subcaves | Disturbed a concealed Subdweller 3019 | -10/Subcaves | Ambushed by Subdwellers from Twisted Machinery 3185 | -10/Subcaves | Entered Materials 3185 | -8/Materials | Evolved 4 slots: Propulsion x1, Utility x3 3186 | -8/Materials | Identified exit to Storage 3354 | -8/Materials | Lost 5 parts (1n2u2w) 3497 | -8/Materials | Discovered exit to Storage (range 7) 3805 | -8/Materials | Lost 4 parts (2n2u) 3853 | -8/Materials | Build established: Mutant 3858 | -8/Materials | Lost 3 parts (1n1u1w) 4125 | -8/Materials | Core integrity fell below 50% 4150 | -8/Materials | Core integrity fell below 20% 4188 | -8/Materials | Lost 14 parts (2n7u5w) 4234 | -8/Materials | Destroyed by Y-45 Defender with Beam Rifle Last Messages --------------- 04149_ Insulated Plating destroyed. 04150_ ALERT: Construction progress impeded, dispatching reinforcements to local area. 04151_ H-61 Shepherd destroyed. 04151_ R-06 Scavenger destroyed. 04153_ Acquired 2 matter. 04154_ U-05 Engineer lays Concrete. 04154_ K-01 Serf collects debris. 04155_ The unstable cave ceiling collapses. 04155_ G-47 Trooper destroyed. 04155_ U-05 Engineer destroyed. 04156_ The unstable cave ceiling collapses. 04157_ Reactive Plating destroyed. 04157_ G-47 Trooper destroyed. 04159_ The unstable cave ceiling collapses. 04159_ Critical hit (Burn: +37). 04174_ Triggered Shock Trap. 04174_ The floor emits a surge of raw power. 04174_ System corrupted (+2). 04182_ G-47 Trooper destroyed. 04210_ Acquired Great Maul. Map ----- +----------------------------------------------------+ | ?????????????????????????????????????????????????? | | ?????????????????????????????????????????????????? | | ?????????????????????????????????????????????????? | | ?????????????????????????????????????????????????? | | ??????????????????????????#????????#?????????????? | | ?????????????????????????????????????????????????? | | ?????????????????????????????????????????????????? | | ?????????????????????????????? ??#???????????????? | | ?????????????????????????? ??? ?????#???????????? | | ??????????????????????????????T??????????????????? | | ?????????????????????????????? ? ????????????????? | | ???????????????????????????? ????????????????? | | ????????????????????????????## ##????????????????? | | ????????????????????????????## ##????????????????? | | ??????????#????#?????######### ##????????????????? | | ?????????????????????######### ##????????????????? | | ??????????????????#??## # ##????????????????? | | ?????????????????????## # ##??????"?????????? | | ?????????????????????## # ##????????????????? | | ????????????????????### """ + ##????????????????? | | ????????????????????### """ # ##????????????????? | | ???????????????#???#### """ # ##????????????????? | | ???????? ?? ##########;##### ##????????????????? | | ????????????######### #### ##????????????????? | | ????????? #### ##??##+##### ????? | | ????????? > @#### ###?# ??????? | | ????????? Y #### ##### #?????????? | | ?????????? ####+### #### #?????????? | | ???????????? ## ## ####" #??######## | | ??????????????????? ## ##### T^ #? ? | | ????????????????????## ##?## #? # | | ??????????????????"?## g##### # # | | ????????????????????## # | | ????????????????????## # | | ????????????????????##k # | | ????????????????????## ######## ? | | ????????????????????## # ?? ? ? | | ????????????????????## ???????? ##??????? | | ????????????????????## ???????? # ##???????? | | ????????????????????## ????????? # ##????????? | | ????????????????????## ? ##??????# ##????????? | | ???????????????????????? ## ##????????? | | ????????????????????? #????????? | | ???????????????????? %! [ # ????###?? | | ???????????????????? [ |*% # [??![[#?? | | ???????????????????? =%/ = [[!![[#?? | | ????????????????????# ## #?? | | ????????????????????????? * " ### | | ???????????????????????? | # !%[ | | ????????????????????????? # + = | +----------------------------------------------------+ Best States ------------- Heat Dissipation 45 Energy Generation 17 Energy Capacity 250 Matter Stores 300 Matter Capacity 300 Sight Range 21 Robot Scan Range 14 Terrain Scan Range 16 Terrain Scan Density 10 Armor Coverage 450 Resistance: KI 20 Resistance: EM 15 Utility Shielding 66 Evasion (%) 55 Recoil Reduction 5 Trap Extractor Capacity 6 Item Schematics ----------------- Hcp. Storage Unit | -10/Materials | Hacked Recoil Stabilizer | -8/Materials | Scanalyzed Robot Schematics ------------------ None Fabricated ------------ Nothing Alien Tech Used ----------------- None Achievements -------------- Dynamic Key Challenges ------------ None Game ------ Seed MachineAerolevBlaster Manual? 0 Play Time 01:06:38 Cumulative 77.3 hours Start 2024.05.07 @ 14:35:02 End 2024.05.07 @ 17:38:51 Sessions 5 Manual Loads 0 Difficulty Rogue Special Mode None Game No. 13 Rogue 7 Adventurer 6 Explorer 0 Win Type - Total 1 Types 1/0/0/0/0/0/0/0/0 Lore% 30 Gallery% 40 Achievement% 35 Wizard Run 0 Options --------- Layout 0 ASCII 0 Keyboard 1 Movement Vi Keybinds 0 Fullscreen 0 Font 20/SmallcapsGlow Map View 113x50 Zoom Use 0% Tactical HUD 1 Map Filters NONE Filters NONE Steam 0 RUN: edb47bfc-f485-4bbc-8397-09583a8e0175